[Event "Titled Tuesday Blitz December 06 Early 2022"]
[White "Yuan, Qingyu"]
[Black "Lohani, Sujana"]
[WhiteFideId "8609772"]
[BlackFideId "12311987"]
[WhiteElo "2359"]
[BlackElo "1718"]
[Result "1-0"]
[Round "03"]
[TimeControl "180+1"]
[Date "2022.12.07"]
[WhiteClock "0:00:47"]
[BlackClock "0:00:04"]

1. e4 {[%clk 0:03:00]}  g6 {[%clk 0:02:39]} 2. d4 {[%clk 0:03:00]}  Bg7 {[%clk 0:02:37]} 3. Nc3 {[%clk 0:03:01]}  d6 {[%clk 0:02:35]} 4. Be3 {[%clk 0:03:01]}  c6 {[%clk 0:02:29]} 5. Qd2 {[%clk 0:02:57]}  b5 {[%clk 0:02:28]} 6. O-O-O {[%clk 0:02:57]}  b4 {[%clk 0:02:27]} 7. Nce2 {[%clk 0:02:56]}  Qa5 {[%clk 0:02:27]} 8. Kb1 {[%clk 0:02:56]}  Be6 {[%clk 0:02:26]} 9. Nc1 {[%clk 0:02:56]}  Nd7 {[%clk 0:02:02]} 10. h4 {[%clk 0:02:19]}  h5 {[%clk 0:01:44]} 11. Nh3 {[%clk 0:02:18]}  Bxh3 {[%clk 0:01:37]} 12. Rxh3 {[%clk 0:02:17]}  c5 {[%clk 0:01:37]} 13. Nb3 {[%clk 0:02:01]}  Qc7 {[%clk 0:01:32]} 14. dxc5 {[%clk 0:01:59]}  dxc5 {[%clk 0:01:25]} 15. Bb5 {[%clk 0:01:55]}  O-O-O {[%clk 0:00:30]} 16. Ba6+ {[%clk 0:01:44]}  Kb8 {[%clk 0:00:28]} 17. Nxc5 {[%clk 0:01:45]}  Ngf6 {[%clk 0:00:20]} 18. Qxb4+ {[%clk 0:01:27]}  Nb6 {[%clk 0:00:19]} 19. Rhh1 {[%clk 0:01:28]}  Ng4 {[%clk 0:00:12]} 20. a3 {[%clk 0:01:02]}  Nxe3 {[%clk 0:00:11]} 21. fxe3 {[%clk 0:01:02]}  Qe5 {[%clk 0:00:10]} 22. Nd7+ {[%clk 0:00:49]}  Kc7 {[%clk 0:00:04]} 23. Nxe5 {[%clk 0:00:47]}  Bxe5 {[%clk 0:00:04]} 24. Qxe7+ {[%clk 0:00:47]} 1-0


[Site "https://www.chess.com"]

[Event "Titled Tuesday Blitz December 06 Early 2022"]
[White "Zaichenko, Daria"]
[Black "Xie, Bryan"]
[WhiteFideId "4197453"]
[BlackFideId "30941296"]
[WhiteElo "2039"]
[BlackElo "2033"]
[Result "0-1"]
[Round "03"]
[TimeControl "180+1"]
[Date "2022.12.07"]
[WhiteClock "0:01:27"]
[BlackClock "0:00:18"]

1. e4 {[%clk 0:02:58]}  c5 {[%clk 0:02:57]} 2. Nf3 {[%clk 0:02:58]}  e6 {[%clk 0:02:56]} 3. d4 {[%clk 0:02:58]}  cxd4 {[%clk 0:02:56]} 4. Nxd4 {[%clk 0:02:58]}  Nc6 {[%clk 0:02:55]} 5. c4 {[%clk 0:02:55]}  Nf6 {[%clk 0:02:47]} 6. Nc3 {[%clk 0:02:54]}  Bb4 {[%clk 0:02:48]} 7. f3 {[%clk 0:02:36]}  d5 {[%clk 0:02:42]} 8. cxd5 {[%clk 0:02:32]}  exd5 {[%clk 0:02:43]} 9. Nxc6 {[%clk 0:02:30]}  bxc6 {[%clk 0:02:42]} 10. exd5 {[%clk 0:02:30]}  cxd5 {[%clk 0:02:14]} 11. Bb5+ {[%clk 0:02:27]}  Bd7 {[%clk 0:02:12]} 12. Qe2+ {[%clk 0:02:24]}  Kf8 {[%clk 0:02:07]} 13. Bxd7 {[%clk 0:02:24]}  d4 {[%clk 0:01:42]} 14. O-O {[%clk 0:02:20]}  dxc3 {[%clk 0:01:19]} 15. Bc6 {[%clk 0:02:07]}  Qb6+ {[%clk 0:01:19]} 16. Be3 {[%clk 0:02:04]}  Qxc6 {[%clk 0:01:18]} 17. bxc3 {[%clk 0:02:04]}  Bc5 {[%clk 0:01:15]} 18. Kh1 {[%clk 0:02:03]}  Re8 {[%clk 0:01:13]} 19. Bxc5+ {[%clk 0:02:01]}  Qxc5 {[%clk 0:01:14]} 20. Qd3 {[%clk 0:01:59]}  g6 {[%clk 0:01:10]} 21. Rab1 {[%clk 0:01:57]}  Kg7 {[%clk 0:01:07]} 22. Rb5 {[%clk 0:01:57]}  Re3 {[%clk 0:00:58]} 23. Rxc5 {[%clk 0:01:52]}  Rxd3 {[%clk 0:00:55]} 24. h3 {[%clk 0:01:46]}  Re8 {[%clk 0:00:50]} 25. Rc7 {[%clk 0:01:44]}  Re2 {[%clk 0:00:48]} 26. Rxa7 {[%clk 0:01:42]}  Rdd2 {[%clk 0:00:47]} 27. Rg1 {[%clk 0:01:41]}  Nh5 {[%clk 0:00:44]} 28. a4 {[%clk 0:01:35]}  Nf4 {[%clk 0:00:28]} 29. Kh2 {[%clk 0:01:31]}  Rxg2+ {[%clk 0:00:25]} 30. Rxg2 {[%clk 0:01:31]}  Rxg2+ {[%clk 0:00:26]} 31. Kh1 {[%clk 0:01:32]}  Ra2 {[%clk 0:00:19]} 32. a5 {[%clk 0:01:30]}  Nxh3 {[%clk 0:00:19]} 33. a6 {[%clk 0:01:29]}  h5 {[%clk 0:00:16]} 34. Ra8 {[%clk 0:01:28]}  g5 {[%clk 0:00:16]} 35. c4 {[%clk 0:01:28]}  g4 {[%clk 0:00:16]} 36. fxg4 {[%clk 0:01:27]}  hxg4 {[%clk 0:00:17]} 37. c5 {[%clk 0:01:28]}  g3 {[%clk 0:00:17]} 38. c6 {[%clk 0:01:27]}  Rh2# {[%clk 0:00:18]} 0-1


[Site "https://www.chess.com"]

[Event "Titled Tuesday Blitz December 06 Early 2022"]
[White "Zaragatski, Ilja"]
[Black "Shapiro, Daniel"]
[WhiteFideId "4655192"]
[BlackFideId "2001780"]
[WhiteElo "2460"]
[BlackElo "2305"]
[Result "1-0"]
[Round "03"]
[TimeControl "180+1"]
[Date "2022.12.07"]
[WhiteClock "0:01:01"]
[BlackClock "0:00:01"]

1. e4 {[%clk 0:03:00]}  e5 {[%clk 0:03:00]} 2. Nf3 {[%clk 0:02:59]}  Nc6 {[%clk 0:03:00]} 3. Bb5 {[%clk 0:02:59]}  a6 {[%clk 0:02:59]} 4. Ba4 {[%clk 0:02:59]}  Nf6 {[%clk 0:02:59]} 5. O-O {[%clk 0:02:59]}  Be7 {[%clk 0:02:59]} 6. Re1 {[%clk 0:02:59]}  b5 {[%clk 0:02:59]} 7. Bb3 {[%clk 0:02:59]}  d6 {[%clk 0:02:59]} 8. c3 {[%clk 0:03:00]}  O-O {[%clk 0:02:59]} 9. h3 {[%clk 0:03:00]}  Na5 {[%clk 0:02:58]} 10. Bc2 {[%clk 0:03:00]}  c5 {[%clk 0:02:59]} 11. d4 {[%clk 0:03:01]}  Nd7 {[%clk 0:02:59]} 12. d5 {[%clk 0:02:56]}  Nb6 {[%clk 0:02:57]} 13. b3 {[%clk 0:02:55]}  c4 {[%clk 0:02:53]} 14. b4 {[%clk 0:02:50]}  Nb7 {[%clk 0:02:53]} 15. a4 {[%clk 0:02:51]}  a5 {[%clk 0:02:45]} 16. axb5 {[%clk 0:02:48]}  axb4 {[%clk 0:02:45]} 17. Rxa8 {[%clk 0:02:49]}  Nxa8 {[%clk 0:02:44]} 18. cxb4 {[%clk 0:02:48]}  Bd7 {[%clk 0:02:40]} 19. Nc3 {[%clk 0:02:48]}  Nc7 {[%clk 0:02:34]} 20. Qe2 {[%clk 0:02:22]}  Nxb5 {[%clk 0:02:33]} 21. Qxc4 {[%clk 0:02:22]}  Qb6 {[%clk 0:02:04]} 22. Be3 {[%clk 0:02:15]}  Qa6 {[%clk 0:02:04]} 23. Nxb5 {[%clk 0:01:45]}  Bxb5 {[%clk 0:02:03]} 24. Qb3 {[%clk 0:01:45]}  Rc8 {[%clk 0:01:55]} 25. Nd2 {[%clk 0:01:34]}  Ra8 {[%clk 0:01:43]} 26. Qb2 {[%clk 0:01:21]}  g6 {[%clk 0:01:32]} 27. Nb3 {[%clk 0:01:13]}  Qa2 {[%clk 0:00:53]} 28. Rb1 {[%clk 0:01:13]}  Bc4 {[%clk 0:00:29]} 29. Nd2 {[%clk 0:01:05]}  Qxb2 {[%clk 0:00:23]} 30. Rxb2 {[%clk 0:01:05]}  Bb5 {[%clk 0:00:16]} 31. Nb1 {[%clk 0:01:05]}  Ra1 {[%clk 0:00:13]} 32. Kh2 {[%clk 0:01:05]}  Nd8 {[%clk 0:00:13]} 33. Nc3 {[%clk 0:01:04]}  Bd7 {[%clk 0:00:07]} 34. b5 {[%clk 0:01:04]}  Bc8 {[%clk 0:00:05]} 35. b6 {[%clk 0:01:02]}  Bb7 {[%clk 0:00:06]} 36. Ba4 {[%clk 0:01:01]}  f5 {[%clk 0:00:01]} 37. f3 {[%clk 0:01:01]} 1-0


[Site "https://www.chess.com"]

[Event "Titled Tuesday Blitz December 06 Early 2022"]
[White "Zemlyanskii, Ivan"]
[Black "Martinez Alcantara, Jose Eduardo"]
[WhiteFideId "24249971"]
[BlackFideId "3805662"]
[WhiteElo "2107"]
[BlackElo "2707"]
[Result "1-0"]
[Round "03"]
[TimeControl "180+1"]
[Date "2022.12.06"]
[WhiteClock "0:00:12"]
[BlackClock "0:00:08"]

1. d4 {[%clk 0:03:00]}  Nf6 {[%clk 0:02:59]} 2. c4 {[%clk 0:03:01]}  e6 {[%clk 0:02:59]} 3. Nf3 {[%clk 0:03:01]}  d5 {[%clk 0:02:59]} 4. g3 {[%clk 0:03:01]}  Bb4+ {[%clk 0:02:59]} 5. Bd2 {[%clk 0:03:01]}  Be7 {[%clk 0:03:00]} 6. Bg2 {[%clk 0:03:01]}  O-O {[%clk 0:03:00]} 7. O-O {[%clk 0:03:01]}  c6 {[%clk 0:03:01]} 8. Qc2 {[%clk 0:02:53]}  Nbd7 {[%clk 0:02:58]} 9. Bf4 {[%clk 0:02:53]}  Nh5 {[%clk 0:02:54]} 10. Bc1 {[%clk 0:02:52]}  Nhf6 {[%clk 0:02:54]} 11. Nbd2 {[%clk 0:02:52]}  b6 {[%clk 0:02:42]} 12. e4 {[%clk 0:02:51]}  Bb7 {[%clk 0:02:42]} 13. e5 {[%clk 0:02:51]}  Ne8 {[%clk 0:02:42]} 14. cxd5 {[%clk 0:02:51]}  cxd5 {[%clk 0:02:41]} 15. Re1 {[%clk 0:02:52]}  Rc8 {[%clk 0:02:40]} 16. Qd1 {[%clk 0:02:51]}  Ba6 {[%clk 0:02:37]} 17. Bf1 {[%clk 0:02:45]}  Bxf1 {[%clk 0:02:37]} 18. Nxf1 {[%clk 0:02:45]}  b5 {[%clk 0:02:33]} 19. h4 {[%clk 0:02:45]}  Nc7 {[%clk 0:02:26]} 20. Bg5 {[%clk 0:02:43]}  h6 {[%clk 0:02:20]} 21. Bxe7 {[%clk 0:02:43]}  Qxe7 {[%clk 0:02:21]} 22. Ne3 {[%clk 0:02:44]}  Rfd8 {[%clk 0:02:12]} 23. Qd3 {[%clk 0:02:41]}  a6 {[%clk 0:02:11]} 24. Rac1 {[%clk 0:02:38]}  Ne8 {[%clk 0:02:09]} 25. Kg2 {[%clk 0:02:35]}  Qb4 {[%clk 0:02:03]} 26. Rxc8 {[%clk 0:02:27]}  Rxc8 {[%clk 0:02:04]} 27. Re2 {[%clk 0:02:28]}  Rc1 {[%clk 0:02:02]} 28. Rc2 {[%clk 0:02:24]}  Rxc2 {[%clk 0:02:01]} 29. Qxc2 {[%clk 0:02:25]}  Kf8 {[%clk 0:01:54]} 30. Qc6 {[%clk 0:02:14]}  Ke7 {[%clk 0:01:53]} 31. Qxd5 {[%clk 0:02:08]}  Qxb2 {[%clk 0:01:51]} 32. Qb7 {[%clk 0:02:05]}  Kd8 {[%clk 0:01:26]} 33. d5 {[%clk 0:01:57]}  Qa3 {[%clk 0:01:09]} 34. Qa8+ {[%clk 0:01:34]}  Ke7 {[%clk 0:01:08]} 35. d6+ {[%clk 0:01:33]}  Nxd6 {[%clk 0:01:08]} 36. exd6+ {[%clk 0:01:34]}  Qxd6 {[%clk 0:01:09]} 37. Qg8 {[%clk 0:01:24]}  g6 {[%clk 0:00:59]} 38. Qh8 {[%clk 0:01:15]}  h5 {[%clk 0:00:59]} 39. Qa8 {[%clk 0:01:07]}  Nc5 {[%clk 0:00:53]} 40. Qa7+ {[%clk 0:01:02]}  Nd7 {[%clk 0:00:50]} 41. Qb7 {[%clk 0:00:38]}  Kf6 {[%clk 0:00:47]} 42. Nc2 {[%clk 0:00:35]}  Nc5 {[%clk 0:00:44]} 43. Qa8 {[%clk 0:00:32]}  Kg7 {[%clk 0:00:39]} 44. Qe8 {[%clk 0:00:28]}  Qd5 {[%clk 0:00:35]} 45. Ne3 {[%clk 0:00:27]}  Qb7 {[%clk 0:00:34]} 46. Qd8 {[%clk 0:00:25]}  Nd7 {[%clk 0:00:31]} 47. Kg1 {[%clk 0:00:19]}  Nf6 {[%clk 0:00:20]} 48. Ne5 {[%clk 0:00:17]}  Qe4 {[%clk 0:00:16]} 49. Qc7 {[%clk 0:00:13]}  Qb1+ {[%clk 0:00:16]} 50. Kh2 {[%clk 0:00:12]}  Ng4+ {[%clk 0:00:07]} 51. N3xg4 {[%clk 0:00:12]}  hxg4 {[%clk 0:00:08]} 52. Qxf7+ {[%clk 0:00:13]}  Kh6 {[%clk 0:00:09]} 53. Qf8+ {[%clk 0:00:13]}  Kh7 {[%clk 0:00:09]} 54. Nf7 {[%clk 0:00:13]}  g5 {[%clk 0:00:08]} 55. Nxg5+ {[%clk 0:00:14]}  Kg6 {[%clk 0:00:09]} 56. Qf7+ {[%clk 0:00:14]}  Kh6 {[%clk 0:00:08]} 57. Qxe6+ {[%clk 0:00:15]}  Kh5 {[%clk 0:00:08]} 58. Qf7+ {[%clk 0:00:14]}  Kh6 {[%clk 0:00:09]} 59. Ne6 {[%clk 0:00:15]}  Qg6 {[%clk 0:00:07]} 60. Qf4+ {[%clk 0:00:12]}  Kh5 {[%clk 0:00:07]} 61. Qe5+ {[%clk 0:00:12]}  Kh6 {[%clk 0:00:07]} 62. Nf4 {[%clk 0:00:12]}  Qf7 {[%clk 0:00:08]} 63. Qg5+ {[%clk 0:00:13]}  Kh7 {[%clk 0:00:08]} 64. Qxg4 {[%clk 0:00:12]}  Qxa2 {[%clk 0:00:08]} 65. Qf5+ {[%clk 0:00:12]}  Kg7 {[%clk 0:00:08]} 66. Ne6+ {[%clk 0:00:12]}  Kh8 {[%clk 0:00:08]} 67. Qf8+ {[%clk 0:00:12]} 1-0


[Site "https://www.chess.com"]

[Event "Titled Tuesday Blitz December 06 Early 2022"]
[White "tufferguy"]
[Black "Ibarra Jerez, Jose Carlos"]
[BlackFideId "2226332"]
[WhiteElo "2532"]
[BlackElo "2638"]
[Result "1-0"]
[Round "03"]
[TimeControl "180+1"]
[Date "2022.12.06"]
[WhiteClock "0:00:29"]
[BlackClock "0:00:21"]

1. e4 {[%clk 0:03:00]}  c5 {[%clk 0:02:59]} 2. Be2 {[%clk 0:03:01]}  Nc6 {[%clk 0:02:58]} 3. d3 {[%clk 0:03:01]}  d5 {[%clk 0:02:58]} 4. f4 {[%clk 0:03:00]}  e6 {[%clk 0:02:53]} 5. Nf3 {[%clk 0:02:59]}  Bd6 {[%clk 0:02:54]} 6. O-O {[%clk 0:02:50]}  Nge7 {[%clk 0:02:54]} 7. c3 {[%clk 0:02:40]}  O-O {[%clk 0:02:44]} 8. a4 {[%clk 0:02:27]}  f6 {[%clk 0:02:44]} 9. Na3 {[%clk 0:02:26]}  a6 {[%clk 0:02:43]} 10. Be3 {[%clk 0:02:10]}  b6 {[%clk 0:02:37]} 11. c4 {[%clk 0:01:55]}  dxe4 {[%clk 0:02:31]} 12. dxe4 {[%clk 0:01:56]}  Qc7 {[%clk 0:02:32]} 13. g3 {[%clk 0:01:50]}  Bb7 {[%clk 0:02:31]} 14. Bd3 {[%clk 0:01:46]}  Rad8 {[%clk 0:02:28]} 15. e5 {[%clk 0:01:31]}  fxe5 {[%clk 0:02:17]} 16. Bxh7+ {[%clk 0:01:14]}  Kxh7 {[%clk 0:01:43]} 17. Ng5+ {[%clk 0:01:15]}  Kg8 {[%clk 0:01:36]} 18. Qh5 {[%clk 0:01:14]}  Rf6 {[%clk 0:01:10]} 19. Qh7+ {[%clk 0:01:11]}  Kf8 {[%clk 0:01:09]} 20. fxe5 {[%clk 0:01:10]}  Rxf1+ {[%clk 0:00:58]} 21. Rxf1+ {[%clk 0:01:11]}  Ke8 {[%clk 0:00:59]} 22. Nxe6 {[%clk 0:01:01]}  Qc8 {[%clk 0:00:54]} 23. Rf8+ {[%clk 0:00:40]}  Kd7 {[%clk 0:00:54]} 24. Nxd8 {[%clk 0:00:40]}  Nxd8 {[%clk 0:00:51]} 25. exd6 {[%clk 0:00:39]}  Qc6 {[%clk 0:00:51]} 26. Rxd8+ {[%clk 0:00:32]}  Kxd8 {[%clk 0:00:52]} 27. dxe7+ {[%clk 0:00:33]}  Kxe7 {[%clk 0:00:53]} 28. Bg5+ {[%clk 0:00:32]}  Kd7 {[%clk 0:00:28]} 29. Qxg7+ {[%clk 0:00:30]}  Kc8 {[%clk 0:00:23]} 30. Qf8+ {[%clk 0:00:29]}  Kd7 {[%clk 0:00:21]} 31. Qe7+ {[%clk 0:00:29]} 1-0


[Site "https://www.chess.com"]

[Event "Titled Tuesday Blitz December 06 Early 2022"]
[White "Albertini, Luca"]
[Black "Estrada Nieto, Julian"]
[WhiteFideId "847038"]
[BlackFideId "5101018"]
[WhiteElo "2207"]
[BlackElo "2195"]
[Result "1/2-1/2"]
[Round "04"]
[TimeControl "180+1"]
[Date "2022.12.07"]
[WhiteClock "0:00:06"]
[BlackClock "0:00:05"]

1. e4 {[%clk 0:03:00]}  e5 {[%clk 0:02:59]} 2. Nf3 {[%clk 0:03:00]}  Nc6 {[%clk 0:03:00]} 3. Bc4 {[%clk 0:03:00]}  Bc5 {[%clk 0:02:59]} 4. b4 {[%clk 0:03:00]}  Bb6 {[%clk 0:02:58]} 5. c3 {[%clk 0:02:57]}  Nf6 {[%clk 0:02:52]} 6. d3 {[%clk 0:02:56]}  d6 {[%clk 0:02:48]} 7. O-O {[%clk 0:02:48]}  a6 {[%clk 0:02:41]} 8. Be3 {[%clk 0:02:47]}  O-O {[%clk 0:02:38]} 9. Bxb6 {[%clk 0:02:46]}  cxb6 {[%clk 0:02:38]} 10. Nbd2 {[%clk 0:02:44]}  b5 {[%clk 0:02:26]} 11. Bb3 {[%clk 0:02:40]}  Ne7 {[%clk 0:02:21]} 12. d4 {[%clk 0:02:28]}  Ng6 {[%clk 0:02:20]} 13. Re1 {[%clk 0:02:16]}  Qe7 {[%clk 0:02:18]} 14. Nf1 {[%clk 0:02:15]}  Be6 {[%clk 0:02:03]} 15. Ng3 {[%clk 0:02:13]}  Qc7 {[%clk 0:01:47]} 16. Rc1 {[%clk 0:02:08]}  Rfe8 {[%clk 0:01:39]} 17. Bxe6 {[%clk 0:01:56]}  fxe6 {[%clk 0:01:33]} 18. Qb3 {[%clk 0:01:54]}  h6 {[%clk 0:01:30]} 19. dxe5 {[%clk 0:01:48]}  dxe5 {[%clk 0:01:25]} 20. c4 {[%clk 0:01:47]}  Rac8 {[%clk 0:01:23]} 21. c5 {[%clk 0:01:47]}  Kh7 {[%clk 0:01:12]} 22. Red1 {[%clk 0:01:45]}  Qc6 {[%clk 0:01:05]} 23. Qe3 {[%clk 0:01:30]}  Rcd8 {[%clk 0:01:00]} 24. h3 {[%clk 0:01:27]}  Rd7 {[%clk 0:00:55]} 25. Rxd7 {[%clk 0:01:24]}  Qxd7 {[%clk 0:00:54]} 26. Rc2 {[%clk 0:01:06]}  Qd1+ {[%clk 0:00:51]} 27. Ne1 {[%clk 0:01:06]}  Nf4 {[%clk 0:00:44]} 28. Rd2 {[%clk 0:01:03]}  Qc1 {[%clk 0:00:39]} 29. Rd6 {[%clk 0:00:54]}  Qb2 {[%clk 0:00:29]} 30. Qd2 {[%clk 0:00:49]}  Qxd2 {[%clk 0:00:27]} 31. Rxd2 {[%clk 0:00:50]}  h5 {[%clk 0:00:26]} 32. f3 {[%clk 0:00:47]}  h4 {[%clk 0:00:24]} 33. Nf1 {[%clk 0:00:47]}  a5 {[%clk 0:00:22]} 34. a3 {[%clk 0:00:38]}  axb4 {[%clk 0:00:21]} 35. axb4 {[%clk 0:00:39]}  Ra8 {[%clk 0:00:22]} 36. Ne3 {[%clk 0:00:30]}  Ra1 {[%clk 0:00:22]} 37. Kf2 {[%clk 0:00:28]}  Rb1 {[%clk 0:00:21]} 38. N1c2 {[%clk 0:00:28]}  Rb2 {[%clk 0:00:19]} 39. Nd1 {[%clk 0:00:23]}  Rb1 {[%clk 0:00:17]} 40. Nc3 {[%clk 0:00:23]}  Rb3 {[%clk 0:00:17]} 41. Ne2 {[%clk 0:00:16]}  Nd3+ {[%clk 0:00:16]} 42. Kg1 {[%clk 0:00:11]}  Nxb4 {[%clk 0:00:17]} 43. Nxb4 {[%clk 0:00:10]}  Rxb4 {[%clk 0:00:17]} 44. Rd6 {[%clk 0:00:11]}  Rb2 {[%clk 0:00:13]} 45. Kf1 {[%clk 0:00:09]}  b4 {[%clk 0:00:13]} 46. Rxe6 {[%clk 0:00:09]}  b3 {[%clk 0:00:13]} 47. Rb6 {[%clk 0:00:09]}  Nh5 {[%clk 0:00:11]} 48. Rxb7 {[%clk 0:00:07]}  Ng3+ {[%clk 0:00:09]} 49. Nxg3 {[%clk 0:00:07]}  hxg3 {[%clk 0:00:09]} 50. c6 {[%clk 0:00:08]}  Rc2 {[%clk 0:00:03]} 51. Rxb3 {[%clk 0:00:07]}  Rxc6 {[%clk 0:00:04]} 52. Rb5 {[%clk 0:00:07]}  Rc1+ {[%clk 0:00:04]} 53. Ke2 {[%clk 0:00:08]}  Rc2+ {[%clk 0:00:04]} 54. Kf1 {[%clk 0:00:08]}  Rc1+ {[%clk 0:00:05]} 55. Ke2 {[%clk 0:00:07]}  Rc2+ {[%clk 0:00:05]} 56. Kf1 {[%clk 0:00:06]}  Rc1+ {[%clk 0:00:05]} 1/2-1/2


[Site "https://www.chess.com"]

[Event "Titled Tuesday Blitz December 06 Early 2022"]
[White "Alex_Sahakyan2006"]
[Black "Czopor, Maciej"]
[BlackFideId "21805431"]
[WhiteElo "2392"]
[BlackElo "2324"]
[Result "1-0"]
[Round "04"]
[TimeControl "180+1"]
[Date "2022.12.07"]
[WhiteClock "0:01:33"]
[BlackClock "0:01:10"]

1. e4 {[%clk 0:03:00]}  g6 {[%clk 0:02:57]} 2. d4 {[%clk 0:03:00]}  Bg7 {[%clk 0:02:53]} 3. Nc3 {[%clk 0:03:00]}  d6 {[%clk 0:02:53]} 4. g3 {[%clk 0:03:00]}  Nf6 {[%clk 0:02:54]} 5. Bg2 {[%clk 0:03:01]}  O-O {[%clk 0:02:55]} 6. Nge2 {[%clk 0:03:01]}  c6 {[%clk 0:02:55]} 7. O-O {[%clk 0:03:01]}  b5 {[%clk 0:02:56]} 8. a3 {[%clk 0:03:02]}  Bb7 {[%clk 0:02:56]} 9. h3 {[%clk 0:03:02]}  Qc7 {[%clk 0:02:57]} 10. Be3 {[%clk 0:03:02]}  Nbd7 {[%clk 0:02:57]} 11. g4 {[%clk 0:03:02]}  e5 {[%clk 0:02:55]} 12. g5 {[%clk 0:02:57]}  Nh5 {[%clk 0:02:53]} 13. d5 {[%clk 0:02:55]}  a6 {[%clk 0:02:50]} 14. dxc6 {[%clk 0:02:55]}  Bxc6 {[%clk 0:02:51]} 15. Qd2 {[%clk 0:02:46]}  Nb6 {[%clk 0:02:49]} 16. Bxb6 {[%clk 0:02:42]}  Qxb6 {[%clk 0:02:49]} 17. Nd5 {[%clk 0:02:43]}  Qa7 {[%clk 0:02:33]} 18. Rad1 {[%clk 0:02:36]}  Rad8 {[%clk 0:02:28]} 19. Bf3 {[%clk 0:02:25]}  Bd7 {[%clk 0:02:01]} 20. Kg2 {[%clk 0:02:00]}  Be6 {[%clk 0:02:01]} 21. Bxh5 {[%clk 0:01:57]}  gxh5 {[%clk 0:02:02]} 22. Ng3 {[%clk 0:01:56]}  Kh8 {[%clk 0:01:35]} 23. Nxh5 {[%clk 0:01:55]}  Rg8 {[%clk 0:01:23]} 24. Kh2 {[%clk 0:01:45]}  Bf8 {[%clk 0:01:19]} 25. Nhf6 {[%clk 0:01:40]}  Rg6 {[%clk 0:01:14]} 26. f4 {[%clk 0:01:39]}  exf4 {[%clk 0:01:12]} 27. Nxf4 {[%clk 0:01:39]}  Bc4 {[%clk 0:01:10]} 28. Nxg6+ {[%clk 0:01:39]}  hxg6 {[%clk 0:01:10]} 29. Qf4 {[%clk 0:01:33]} 1-0


[Site "https://www.chess.com"]

[Event "Titled Tuesday Blitz December 06 Early 2022"]
[White "Andreikin, Dmitry"]
[Black "Agasarov, Benik"]
[WhiteFideId "4158814"]
[BlackFideId "13314823"]
[WhiteElo "2735"]
[BlackElo "2179"]
[Result "1/2-1/2"]
[Round "04"]
[TimeControl "180+1"]
[Date "2022.12.06"]
[WhiteClock "0:00:08"]
[BlackClock "0:00:04"]

1. d4 {[%clk 0:03:00]}  Nf6 {[%clk 0:02:59]} 2. c4 {[%clk 0:02:56]}  e6 {[%clk 0:02:59]} 3. Nf3 {[%clk 0:02:55]}  d5 {[%clk 0:02:59]} 4. g3 {[%clk 0:02:55]}  Be7 {[%clk 0:02:57]} 5. Bg2 {[%clk 0:02:55]}  O-O {[%clk 0:02:57]} 6. O-O {[%clk 0:02:56]}  dxc4 {[%clk 0:02:58]} 7. Qc2 {[%clk 0:02:55]}  a6 {[%clk 0:02:58]} 8. a4 {[%clk 0:02:55]}  Bd7 {[%clk 0:02:45]} 9. Qxc4 {[%clk 0:02:55]}  Bc6 {[%clk 0:02:46]} 10. Bf4 {[%clk 0:02:53]}  Bd6 {[%clk 0:02:44]} 11. Qc1 {[%clk 0:02:52]}  a5 {[%clk 0:02:38]} 12. Nc3 {[%clk 0:02:51]}  Na6 {[%clk 0:02:38]} 13. Rd1 {[%clk 0:02:47]}  Nb4 {[%clk 0:02:37]} 14. h4 {[%clk 0:02:18]}  Nbd5 {[%clk 0:02:07]} 15. Bg5 {[%clk 0:02:08]}  h6 {[%clk 0:01:57]} 16. Bxf6 {[%clk 0:02:08]}  Nxf6 {[%clk 0:01:56]} 17. e3 {[%clk 0:02:03]}  Bb4 {[%clk 0:01:52]} 18. Qc2 {[%clk 0:02:01]}  Qe7 {[%clk 0:01:46]} 19. Rac1 {[%clk 0:01:47]}  Rfd8 {[%clk 0:01:44]} 20. Nb5 {[%clk 0:01:30]}  Ra6 {[%clk 0:01:24]} 21. Qc4 {[%clk 0:01:21]}  Rb6 {[%clk 0:01:19]} 22. Ne5 {[%clk 0:01:17]}  Bxg2 {[%clk 0:01:16]} 23. Kxg2 {[%clk 0:01:18]}  c6 {[%clk 0:01:17]} 24. Nc3 {[%clk 0:01:18]}  Bd6 {[%clk 0:01:11]} 25. Nd3 {[%clk 0:01:18]}  Bb4 {[%clk 0:00:59]} 26. Rc2 {[%clk 0:01:09]}  Nd5 {[%clk 0:00:48]} 27. Ne4 {[%clk 0:01:06]}  Nf6 {[%clk 0:00:46]} 28. Nxf6+ {[%clk 0:00:49]}  Qxf6 {[%clk 0:00:47]} 29. b3 {[%clk 0:00:37]}  Qf5 {[%clk 0:00:45]} 30. Ne5 {[%clk 0:00:34]}  Qe4+ {[%clk 0:00:40]} 31. Kg1 {[%clk 0:00:32]}  Bd6 {[%clk 0:00:37]} 32. Nd3 {[%clk 0:00:26]}  Bb4 {[%clk 0:00:37]} 33. Rcc1 {[%clk 0:00:23]}  Ba3 {[%clk 0:00:30]} 34. Rb1 {[%clk 0:00:22]}  Qd5 {[%clk 0:00:28]} 35. Nf4 {[%clk 0:00:20]}  Qxc4 {[%clk 0:00:27]} 36. bxc4 {[%clk 0:00:20]}  Rb4 {[%clk 0:00:16]} 37. Ra1 {[%clk 0:00:16]}  Bb2 {[%clk 0:00:14]} 38. Ra2 {[%clk 0:00:16]}  Bc3 {[%clk 0:00:08]} 39. Ne2 {[%clk 0:00:11]}  Rb3 {[%clk 0:00:08]} 40. Nxc3 {[%clk 0:00:08]}  Rxc3 {[%clk 0:00:09]} 41. Rb1 {[%clk 0:00:08]}  Rxc4 {[%clk 0:00:09]} 42. Rxb7 {[%clk 0:00:08]}  c5 {[%clk 0:00:09]} 43. Rc7 {[%clk 0:00:06]}  Rd5 {[%clk 0:00:08]} 44. Kg2 {[%clk 0:00:06]}  h5 {[%clk 0:00:05]} 45. Rb2 {[%clk 0:00:06]}  Rb4 {[%clk 0:00:05]} 46. Rxb4 {[%clk 0:00:05]}  cxb4 {[%clk 0:00:05]} 47. Rb7 {[%clk 0:00:04]}  e5 {[%clk 0:00:06]} 48. dxe5 {[%clk 0:00:02]}  Rxe5 {[%clk 0:00:07]} 49. Kf3 {[%clk 0:00:02]}  Rc5 {[%clk 0:00:07]} 50. Ke4 {[%clk 0:00:02]}  Rc2 {[%clk 0:00:07]} 51. Rb5 {[%clk 0:00:02]}  Rxf2 {[%clk 0:00:07]} 52. Rxa5 {[%clk 0:00:02]}  b3 {[%clk 0:00:07]} 53. Rxh5 {[%clk 0:00:02]}  Ra2 {[%clk 0:00:07]} 54. Rb5 {[%clk 0:00:02]}  Rxa4+ {[%clk 0:00:07]} 55. Kf3 {[%clk 0:00:02]}  Ra3 {[%clk 0:00:07]} 56. h5 {[%clk 0:00:03]}  Kh7 {[%clk 0:00:07]} 57. g4 {[%clk 0:00:03]}  g6 {[%clk 0:00:08]} 58. Kf4 {[%clk 0:00:02]}  gxh5 {[%clk 0:00:08]} 59. gxh5 {[%clk 0:00:03]}  Kh6 {[%clk 0:00:08]} 60. e4 {[%clk 0:00:04]}  Ra1 {[%clk 0:00:07]} 61. Rxb3 {[%clk 0:00:04]}  Kxh5 {[%clk 0:00:06]} 62. Rg3 {[%clk 0:00:04]}  Rf1+ {[%clk 0:00:07]} 63. Ke5 {[%clk 0:00:05]}  Kh6 {[%clk 0:00:07]} 64. Kd6 {[%clk 0:00:05]}  Rf6+ {[%clk 0:00:05]} 65. Kd5 {[%clk 0:00:04]}  Rg6 {[%clk 0:00:05]} 66. Rf3 {[%clk 0:00:04]}  Kg7 {[%clk 0:00:05]} 67. e5 {[%clk 0:00:04]}  Ra6 {[%clk 0:00:05]} 68. Ke4 {[%clk 0:00:04]}  Rg6 {[%clk 0:00:03]} 69. Kf5 {[%clk 0:00:04]}  Re6 {[%clk 0:00:03]} 70. Rg3+ {[%clk 0:00:05]}  Kf8 {[%clk 0:00:03]} 71. Rd3 {[%clk 0:00:05]}  Kg7 {[%clk 0:00:03]} 72. Rd7 {[%clk 0:00:05]}  Kf8 {[%clk 0:00:04]} 73. Rd2 {[%clk 0:00:06]}  Kg7 {[%clk 0:00:04]} 74. Rd6 {[%clk 0:00:05]}  Rxd6 {[%clk 0:00:02]} 75. exd6 {[%clk 0:00:06]}  Kf8 {[%clk 0:00:03]} 76. Kf6 {[%clk 0:00:06]}  Ke8 {[%clk 0:00:04]} 77. d7+ {[%clk 0:00:07]}  Kxd7 {[%clk 0:00:04]} 78. Kxf7 {[%clk 0:00:08]} 1/2-1/2


[Site "https://www.chess.com"]